[Event "Early Titled Tuesday Blitz | February 8 2022"]
[White "Zhigalko, Sergei"]
[Black "Pakleza, Zbigniew"]
[WhiteFideId "13502956"]
[BlackFideId "1119290"]
[WhiteElo "2662"]
[BlackElo "2467"]
[Result "0-1"]
[Round "07"]
[TimeControl "180+1"]
[Date "2022.02.08"]
[WhiteClock "0:00:02"]
[BlackClock "0:00:15"]

1. e4 {[%clk 0:03:00]}  d6 {[%clk 0:03:00]} 2. d4 {[%clk 0:03:00]}  Nf6 {[%clk 0:03:01]} 3. Nc3 {[%clk 0:03:00]}  c6 {[%clk 0:03:01]} 4. Nf3 {[%clk 0:03:00]}  Bg4 {[%clk 0:03:01]} 5. h3 {[%clk 0:03:00]}  Bh5 {[%clk 0:03:02]} 6. Be2 {[%clk 0:02:56]}  e6 {[%clk 0:03:02]} 7. O-O {[%clk 0:02:55]}  d5 {[%clk 0:02:59]} 8. Ne5 {[%clk 0:02:42]}  Bxe2 {[%clk 0:02:58]} 9. Qxe2 {[%clk 0:02:43]}  Nbd7 {[%clk 0:02:53]} 10. exd5 {[%clk 0:02:26]}  cxd5 {[%clk 0:02:53]} 11. Bg5 {[%clk 0:02:26]}  Be7 {[%clk 0:02:39]} 12. Bxf6 {[%clk 0:02:03]}  Bxf6 {[%clk 0:02:34]} 13. f4 {[%clk 0:01:48]}  O-O {[%clk 0:02:31]} 14. Kh1 {[%clk 0:01:48]}  Rc8 {[%clk 0:02:28]} 15. Nd1 {[%clk 0:01:43]}  Nxe5 {[%clk 0:01:51]} 16. fxe5 {[%clk 0:01:41]}  Bg5 {[%clk 0:01:49]} 17. c3 {[%clk 0:01:40]}  Qd7 {[%clk 0:01:41]} 18. Nf2 {[%clk 0:01:33]}  b5 {[%clk 0:01:35]} 19. Nd3 {[%clk 0:01:31]}  Be7 {[%clk 0:01:36]} 20. Rf3 {[%clk 0:01:14]}  a5 {[%clk 0:01:33]} 21. Raf1 {[%clk 0:01:11]}  b4 {[%clk 0:01:24]} 22. Nf4 {[%clk 0:01:11]}  g6 {[%clk 0:01:13]} 23. Qf2 {[%clk 0:00:56]}  bxc3 {[%clk 0:01:03]} 24. bxc3 {[%clk 0:00:56]}  Bg5 {[%clk 0:00:52]} 25. Rg3 {[%clk 0:00:27]}  Bxf4 {[%clk 0:00:34]} 26. Qxf4 {[%clk 0:00:27]}  Qe7 {[%clk 0:00:19]} 27. h4 {[%clk 0:00:25]}  Rc7 {[%clk 0:00:15]} 28. h5 {[%clk 0:00:24]}  Rfc8 {[%clk 0:00:16]} 29. Rff3 {[%clk 0:00:21]}  Qf8 {[%clk 0:00:12]} 30. Kh2 {[%clk 0:00:11]}  a4 {[%clk 0:00:11]} 31. Qh4 {[%clk 0:00:07]}  Qg7 {[%clk 0:00:08]} 32. h6 {[%clk 0:00:05]}  Qf8 {[%clk 0:00:09]} 33. Qg5 {[%clk 0:00:05]}  Qe7 {[%clk 0:00:09]} 34. Qf4 {[%clk 0:00:04]}  a3 {[%clk 0:00:09]} 35. Kh3 {[%clk 0:00:05]}  Rc6 {[%clk 0:00:09]} 36. Qd2 {[%clk 0:00:04]}  Qb7 {[%clk 0:00:08]} 37. Qf4 {[%clk 0:00:04]}  Qe7 {[%clk 0:00:08]} 38. Qc1 {[%clk 0:00:04]}  Rb8 {[%clk 0:00:07]} 39. Qf1 {[%clk 0:00:03]}  Rb2 {[%clk 0:00:07]} 40. Rf2 {[%clk 0:00:03]}  Rcb6 {[%clk 0:00:06]} 41. Rgf3 {[%clk 0:00:02]}  Rxf2 {[%clk 0:00:07]} 42. Qxf2 {[%clk 0:00:02]}  Rb2 {[%clk 0:00:06]} 43. Qe1 {[%clk 0:00:01]}  Rxa2 {[%clk 0:00:06]} 44. Qc1 {[%clk 0:00:01]}  Rb2 {[%clk 0:00:06]} 45. Qa1 {[%clk 0:00:01]}  Rb3 {[%clk 0:00:02]} 46. Qa2 {[%clk 0:00:01]}  Qb7 {[%clk 0:00:03]} 47. Qf2 {[%clk 0:00:01]}  Rb2 {[%clk 0:00:03]} 48. Qh4 {[%clk 0:00:01]}  Qc8 {[%clk 0:00:02]} 49. Qf6 {[%clk 0:00:01]}  Qf8 {[%clk 0:00:03]} 50. Kg4 {[%clk 0:00:01]}  Qxh6 {[%clk 0:00:03]} 51. Qe7 {[%clk 0:00:01]}  Qf8 {[%clk 0:00:04]} 52. Qh4 {[%clk 0:00:01]}  h5+ {[%clk 0:00:04]} 53. Kg3 {[%clk 0:00:01]}  Qg7 {[%clk 0:00:05]} 54. Rf1 {[%clk 0:00:01]}  Rb8 {[%clk 0:00:06]} 55. Qe7 {[%clk 0:00:01]}  Ra8 {[%clk 0:00:06]} 56. Ra1 {[%clk 0:00:01]}  Qf8 {[%clk 0:00:07]} 57. Qb7 {[%clk 0:00:01]}  Qb8 {[%clk 0:00:07]} 58. Qxb8+ {[%clk 0:00:01]}  Rxb8 {[%clk 0:00:08]} 59. Rxa3 {[%clk 0:00:02]}  Rb2 {[%clk 0:00:09]} 60. Kf3 {[%clk 0:00:02]}  Kg7 {[%clk 0:00:10]} 61. g3 {[%clk 0:00:02]}  g5 {[%clk 0:00:10]} 62. Ra7 {[%clk 0:00:02]}  Rc2 {[%clk 0:00:10]} 63. Rc7 {[%clk 0:00:03]}  Kg6 {[%clk 0:00:11]} 64. Ke3 {[%clk 0:00:02]}  Rg2 {[%clk 0:00:11]} 65. Kf3 {[%clk 0:00:03]}  Rc2 {[%clk 0:00:11]} 66. Ke3 {[%clk 0:00:03]}  g4 {[%clk 0:00:12]} 67. Rc8 {[%clk 0:00:02]}  Rg2 {[%clk 0:00:12]} 68. Rg8+ {[%clk 0:00:02]}  Kh7 {[%clk 0:00:13]} 69. Rf8 {[%clk 0:00:02]}  Kg7 {[%clk 0:00:13]} 70. Rc8 {[%clk 0:00:02]}  Rxg3+ {[%clk 0:00:14]} 71. Kf4 {[%clk 0:00:03]}  Rf3+ {[%clk 0:00:13]} 72. Kg5 {[%clk 0:00:04]}  g3 {[%clk 0:00:13]} 73. Ra8 {[%clk 0:00:01]}  g2 {[%clk 0:00:14]} 74. Ra1 {[%clk 0:00:02]}  Rg3+ {[%clk 0:00:14]} 75. Kh4 {[%clk 0:00:02]}  g1=Q {[%clk 0:00:15]} 0-1


[Site "https://www.chess.com"]

[Event "Early Titled Tuesday Blitz | February 8 2022"]
[White "Agasarov, Benik"]
[Black "Lopez Gracia, Fernando"]
[WhiteFideId "13314823"]
[BlackFideId "2207184"]
[WhiteElo "2587"]
[BlackElo "2431"]
[Result "1-0"]
[Round "08"]
[TimeControl "180+1"]
[Date "2022.02.08"]
[WhiteClock "0:01:00"]
[BlackClock "0:00:41"]

1. e4 {[%clk 0:02:59]}  e5 {[%clk 0:02:59]} 2. Nc3 {[%clk 0:02:58]}  Nf6 {[%clk 0:02:59]} 3. Bc4 {[%clk 0:02:58]}  Bc5 {[%clk 0:02:59]} 4. f4 {[%clk 0:02:53]}  d5 {[%clk 0:02:55]} 5. exd5 {[%clk 0:02:48]}  Ng4 {[%clk 0:02:55]} 6. Ne4 {[%clk 0:02:42]}  Bxg1 {[%clk 0:02:49]} 7. Rxg1 {[%clk 0:02:39]}  Qh4+ {[%clk 0:02:43]} 8. Ke2 {[%clk 0:02:20]}  Nxh2 {[%clk 0:02:35]} 9. Kd3 {[%clk 0:02:14]}  f5 {[%clk 0:02:16]} 10. Ng5 {[%clk 0:02:06]}  Qg3+ {[%clk 0:02:11]} 11. Ke2 {[%clk 0:01:56]}  exf4 {[%clk 0:02:01]} 12. Nf3 {[%clk 0:01:53]}  Ng4 {[%clk 0:01:59]} 13. Qe1 {[%clk 0:01:52]}  O-O {[%clk 0:01:52]} 14. Qxg3 {[%clk 0:01:50]}  Re8+ {[%clk 0:01:51]} 15. Kd3 {[%clk 0:01:41]}  fxg3 {[%clk 0:01:50]} 16. Kc3 {[%clk 0:01:35]}  b5 {[%clk 0:01:41]} 17. Bxb5 {[%clk 0:01:33]}  Bd7 {[%clk 0:01:41]} 18. Bc4 {[%clk 0:01:32]}  Nf2 {[%clk 0:01:30]} 19. d3 {[%clk 0:01:30]}  h6 {[%clk 0:01:18]} 20. Bf4 {[%clk 0:01:29]}  c6 {[%clk 0:01:12]} 21. dxc6+ {[%clk 0:01:26]}  Be6 {[%clk 0:01:12]} 22. c7 {[%clk 0:01:15]}  Nc6 {[%clk 0:01:09]} 23. Bb5 {[%clk 0:01:14]}  Bd5 {[%clk 0:01:07]} 24. Bxg3 {[%clk 0:01:12]}  Ng4 {[%clk 0:01:06]} 25. Rge1 {[%clk 0:01:09]}  Kf7 {[%clk 0:01:02]} 26. Rxe8 {[%clk 0:01:07]}  Rxe8 {[%clk 0:01:00]} 27. Nd4 {[%clk 0:01:05]}  Re6 {[%clk 0:00:41]} 28. c8=Q {[%clk 0:01:00]} 1-0


[Site "https://www.chess.com"]

[Event "Early Titled Tuesday Blitz | February 8 2022"]
[White "Aggelis, Nikolaos"]
[Black "Barp, Alberto"]
[WhiteFideId "4213220"]
[BlackFideId "872555"]
[WhiteElo "2154"]
[BlackElo "2229"]
[Result "1/2-1/2"]
[Round "08"]
[TimeControl "180+1"]
[Date "2022.02.08"]
[WhiteClock "0:00:49"]
[BlackClock "0:00:32"]

1. d4 {[%clk 0:02:59]}  Nf6 {[%clk 0:02:57]} 2. g3 {[%clk 0:02:57]}  d5 {[%clk 0:02:54]} 3. Nf3 {[%clk 0:02:56]}  g6 {[%clk 0:02:42]} 4. Bg2 {[%clk 0:02:56]}  Bg7 {[%clk 0:02:42]} 5. O-O {[%clk 0:02:57]}  O-O {[%clk 0:02:41]} 6. c4 {[%clk 0:02:58]}  e6 {[%clk 0:02:39]} 7. Nbd2 {[%clk 0:02:51]}  Nbd7 {[%clk 0:02:34]} 8. b3 {[%clk 0:02:50]}  b6 {[%clk 0:02:32]} 9. Bb2 {[%clk 0:02:48]}  Bb7 {[%clk 0:02:32]} 10. Ne5 {[%clk 0:02:49]}  c5 {[%clk 0:02:26]} 11. Nxd7 {[%clk 0:02:48]}  Qxd7 {[%clk 0:02:22]} 12. dxc5 {[%clk 0:02:48]}  bxc5 {[%clk 0:02:21]} 13. cxd5 {[%clk 0:02:42]}  exd5 {[%clk 0:02:20]} 14. e4 {[%clk 0:02:42]}  dxe4 {[%clk 0:01:47]} 15. Bxf6 {[%clk 0:02:34]}  Bxf6 {[%clk 0:01:40]} 16. Nxe4 {[%clk 0:02:34]}  Qxd1 {[%clk 0:01:26]} 17. Nxf6+ {[%clk 0:02:33]}  Kg7 {[%clk 0:01:24]} 18. Rfxd1 {[%clk 0:02:31]}  Bxg2 {[%clk 0:01:24]} 19. Nh5+ {[%clk 0:02:14]}  gxh5 {[%clk 0:01:20]} 20. Kxg2 {[%clk 0:02:14]}  Rfd8 {[%clk 0:01:20]} 21. Rac1 {[%clk 0:02:13]}  Rxd1 {[%clk 0:01:08]} 22. Rxd1 {[%clk 0:02:13]}  Rc8 {[%clk 0:01:07]} 23. Rd7 {[%clk 0:02:08]}  c4 {[%clk 0:00:56]} 24. bxc4 {[%clk 0:02:08]}  Rxc4 {[%clk 0:00:57]} 25. Rxa7 {[%clk 0:02:08]}  h4 {[%clk 0:00:56]} 26. Kh3 {[%clk 0:01:52]}  hxg3 {[%clk 0:00:56]} 27. hxg3 {[%clk 0:01:52]}  h5 {[%clk 0:00:53]} 28. a4 {[%clk 0:01:45]}  Kg6 {[%clk 0:00:50]} 29. a5 {[%clk 0:01:42]}  Ra4 {[%clk 0:00:50]} 30. a6 {[%clk 0:01:41]}  Ra2 {[%clk 0:00:43]} 31. Ra8 {[%clk 0:01:35]}  f6 {[%clk 0:00:29]} 32. Kg2 {[%clk 0:01:25]}  Ra3 {[%clk 0:00:26]} 33. Kh3 {[%clk 0:01:24]}  Ra2 {[%clk 0:00:25]} 34. g4 {[%clk 0:01:24]}  hxg4+ {[%clk 0:00:23]} 35. Kxg4 {[%clk 0:01:25]}  Ra4+ {[%clk 0:00:22]} 36. f4 {[%clk 0:01:15]}  Ra5 {[%clk 0:00:22]} 37. a7 {[%clk 0:01:09]}  Kg7 {[%clk 0:00:22]} 38. Kf3 {[%clk 0:01:02]}  Ra4 {[%clk 0:00:22]} 39. Ke3 {[%clk 0:01:02]}  Ra3+ {[%clk 0:00:22]} 40. Kd4 {[%clk 0:01:02]}  Ra5 {[%clk 0:00:22]} 41. Kc4 {[%clk 0:01:02]}  Ra1 {[%clk 0:00:22]} 42. Kb5 {[%clk 0:01:02]}  Rb1+ {[%clk 0:00:22]} 43. Kc6 {[%clk 0:01:02]}  Rc1+ {[%clk 0:00:22]} 44. Kd7 {[%clk 0:01:03]}  Rd1+ {[%clk 0:00:22]} 45. Ke6 {[%clk 0:01:01]}  Ra1 {[%clk 0:00:20]} 46. Rd8 {[%clk 0:00:58]}  Rxa7 {[%clk 0:00:19]} 47. f5 {[%clk 0:00:54]}  Ra6+ {[%clk 0:00:19]} 48. Ke7 {[%clk 0:00:53]}  Ra5 {[%clk 0:00:17]} 49. Rd7 {[%clk 0:00:45]}  Rxf5 {[%clk 0:00:16]} 50. Ke6+ {[%clk 0:00:42]}  Kg6 {[%clk 0:00:16]} 51. Rg7+ {[%clk 0:00:42]}  Kxg7 {[%clk 0:00:17]} 52. Kxf5 {[%clk 0:00:43]}  Kf7 {[%clk 0:00:18]} 53. Kf4 {[%clk 0:00:43]}  Ke7 {[%clk 0:00:19]} 54. Kf5 {[%clk 0:00:43]}  Kf7 {[%clk 0:00:19]} 55. Kf4 {[%clk 0:00:43]}  Ke6 {[%clk 0:00:20]} 56. Ke4 {[%clk 0:00:44]}  f5+ {[%clk 0:00:21]} 57. Kf4 {[%clk 0:00:44]}  Kf6 {[%clk 0:00:21]} 58. Kf3 {[%clk 0:00:45]}  Ke5 {[%clk 0:00:22]} 59. Ke3 {[%clk 0:00:45]}  f4+ {[%clk 0:00:22]} 60. Kf3 {[%clk 0:00:45]}  Kf5 {[%clk 0:00:23]} 61. Kf2 {[%clk 0:00:46]}  Kg4 {[%clk 0:00:24]} 62. Kg2 {[%clk 0:00:46]}  f3+ {[%clk 0:00:24]} 63. Kf2 {[%clk 0:00:47]}  Kf4 {[%clk 0:00:25]} 64. Kf1 {[%clk 0:00:47]}  Ke4 {[%clk 0:00:26]} 65. Kf2 {[%clk 0:00:47]}  Kf4 {[%clk 0:00:27]} 66. Kf1 {[%clk 0:00:48]}  Kf5 {[%clk 0:00:27]} 67. Kf2 {[%clk 0:00:48]}  Kg4 {[%clk 0:00:28]} 68. Kf1 {[%clk 0:00:48]}  Kg3 {[%clk 0:00:29]} 69. Kg1 {[%clk 0:00:48]}  Kf4 {[%clk 0:00:29]} 70. Kf2 {[%clk 0:00:48]}  Ke4 {[%clk 0:00:30]} 71. Kf1 {[%clk 0:00:49]}  Ke3 {[%clk 0:00:30]} 72. Ke1 {[%clk 0:00:49]}  f2+ {[%clk 0:00:31]} 73. Kf1 {[%clk 0:00:49]}  Kf3 {[%clk 0:00:32]} 1/2-1/2


[Site "https://www.chess.com"]

[Event "Early Titled Tuesday Blitz | February 8 2022"]
[White "Agibileg, Uurtsaikh"]
[Black "Kushagra, Mohan"]
[WhiteFideId "4901606"]
[BlackFideId "25033638"]
[WhiteElo "2205"]
[BlackElo "1886"]
[Result "1-0"]
[Round "08"]
[TimeControl "180+1"]
[Date "2022.02.08"]
[WhiteClock "0:02:25"]
[BlackClock "0:00:03"]

1. d4 {[%clk 0:03:00]}  Nf6 {[%clk 0:02:56]} 2. c4 {[%clk 0:03:01]}  g6 {[%clk 0:02:56]} 3. Nc3 {[%clk 0:03:01]}  Bg7 {[%clk 0:02:55]} 4. e4 {[%clk 0:03:02]}  d6 {[%clk 0:02:56]} 5. Be2 {[%clk 0:03:02]}  O-O {[%clk 0:02:56]} 6. Nf3 {[%clk 0:03:02]}  c5 {[%clk 0:02:56]} 7. O-O {[%clk 0:03:01]}  cxd4 {[%clk 0:02:56]} 8. Nxd4 {[%clk 0:03:02]}  Nc6 {[%clk 0:02:56]} 9. Be3 {[%clk 0:03:01]}  Bd7 {[%clk 0:02:57]} 10. Qd2 {[%clk 0:02:57]}  Nxd4 {[%clk 0:02:56]} 11. Bxd4 {[%clk 0:02:57]}  a5 {[%clk 0:02:57]} 12. f3 {[%clk 0:02:54]}  Bc6 {[%clk 0:02:57]} 13. Nd5 {[%clk 0:02:55]}  Bxd5 {[%clk 0:02:56]} 14. exd5 {[%clk 0:02:55]}  Nd7 {[%clk 0:02:56]} 15. Rfe1 {[%clk 0:02:53]}  Bxd4+ {[%clk 0:02:55]} 16. Qxd4 {[%clk 0:02:54]}  Qb6 {[%clk 0:02:54]} 17. Qxb6 {[%clk 0:02:45]}  Nxb6 {[%clk 0:02:54]} 18. Bd3 {[%clk 0:02:46]}  Rfe8 {[%clk 0:02:52]} 19. b3 {[%clk 0:02:41]}  Rac8 {[%clk 0:00:03]} 20. Rac1 {[%clk 0:02:37]}  Rc7 {[%clk 0:00:02]} 21. Kf2 {[%clk 0:02:35]}  Kf8 {[%clk 0:00:03]} 22. h4 {[%clk 0:02:35]}  Rec8 {[%clk 0:00:03]} 23. Rcd1 {[%clk 0:02:31]}  Rd8 {[%clk 0:00:04]} 24. h5 {[%clk 0:02:31]}  a4 {[%clk 0:00:03]} 25. hxg6 {[%clk 0:02:28]}  hxg6 {[%clk 0:00:04]} 26. Re4 {[%clk 0:02:29]}  Ra8 {[%clk 0:00:04]} 27. Rh1 {[%clk 0:02:28]}  Kg7 {[%clk 0:00:03]} 28. Reh4 {[%clk 0:02:28]}  axb3 {[%clk 0:00:04]} 29. axb3 {[%clk 0:02:28]}  Ra3 {[%clk 0:00:04]} 30. g4 {[%clk 0:02:25]}  Rxb3 {[%clk 0:00:03]} 31. g5 {[%clk 0:02:25]} 1-0


[Site "https://www.chess.com"]

[Event "Early Titled Tuesday Blitz | February 8 2022"]
[White "Al Mukhaini, Shima"]
[Black "Camacho Collados, Jose"]
[WhiteFideId "22005854"]
[BlackFideId "2265427"]
[WhiteElo "2394"]
[BlackElo "2351"]
[Result "0-1"]
[Round "08"]
[TimeControl "180+1"]
[Date "2022.02.08"]
[WhiteClock "0:01:11"]
[BlackClock "0:02:14"]

1. b3 {[%clk 0:03:00]}  c5 {[%clk 0:02:58]} 2. Bb2 {[%clk 0:03:01]}  Nc6 {[%clk 0:02:59]} 3. e3 {[%clk 0:03:01]}  d6 {[%clk 0:03:00]} 4. Bb5 {[%clk 0:02:58]}  Bd7 {[%clk 0:02:58]} 5. Ne2 {[%clk 0:02:58]}  a6 {[%clk 0:02:59]} 6. Bxc6 {[%clk 0:02:58]}  Bxc6 {[%clk 0:02:59]} 7. O-O {[%clk 0:02:58]}  Nf6 {[%clk 0:02:59]} 8. d4 {[%clk 0:02:58]}  cxd4 {[%clk 0:02:59]} 9. Nxd4 {[%clk 0:02:59]}  Rc8 {[%clk 0:02:58]} 10. Nxc6 {[%clk 0:02:59]}  Rxc6 {[%clk 0:02:58]} 11. c4 {[%clk 0:02:59]}  e6 {[%clk 0:02:57]} 12. Nc3 {[%clk 0:02:57]}  Be7 {[%clk 0:02:58]} 13. Qf3 {[%clk 0:02:54]}  O-O {[%clk 0:02:57]} 14. Rad1 {[%clk 0:02:53]}  Qa5 {[%clk 0:02:57]} 15. Rd2 {[%clk 0:02:51]}  Rfc8 {[%clk 0:02:53]} 16. Rfd1 {[%clk 0:02:39]}  b5 {[%clk 0:02:52]} 17. cxb5 {[%clk 0:02:13]}  axb5 {[%clk 0:02:53]} 18. Ne2 {[%clk 0:01:49]}  d5 {[%clk 0:02:34]} 19. g4 {[%clk 0:01:47]}  Ne4 {[%clk 0:02:32]} 20. Rd3 {[%clk 0:01:41]}  Qxa2 {[%clk 0:02:31]} 21. Be5 {[%clk 0:01:30]}  Rc2 {[%clk 0:02:22]} 22. Re1 {[%clk 0:01:18]}  Ng5 {[%clk 0:02:14]} 23. Qg3 {[%clk 0:01:10]}  Rxe2 {[%clk 0:02:14]} 24. Rxe2 {[%clk 0:01:11]}  Qxe2 {[%clk 0:02:14]} 0-1


[Site "https://www.chess.com"]

[Event "Early Titled Tuesday Blitz | February 8 2022"]
[White "Alinasab, Mobina"]
[Black "Yuan, Qingyu"]
[WhiteFideId "12528897"]
[BlackFideId "8609772"]
[WhiteElo "2061"]
[BlackElo "2359"]
[Result "0-1"]
[Round "08"]
[TimeControl "180+1"]
[Date "2022.02.08"]
[WhiteClock "0:00:05"]
[BlackClock "0:00:13"]

1. e4 {[%clk 0:03:00]}  c6 {[%clk 0:02:59]} 2. d4 {[%clk 0:02:46]}  d5 {[%clk 0:02:59]} 3. Nd2 {[%clk 0:02:38]}  dxe4 {[%clk 0:02:59]} 4. Nxe4 {[%clk 0:02:39]}  Nf6 {[%clk 0:03:00]} 5. Nxf6+ {[%clk 0:02:39]}  exf6 {[%clk 0:03:00]} 6. c3 {[%clk 0:02:40]}  Bd6 {[%clk 0:03:01]} 7. Bd3 {[%clk 0:02:40]}  O-O {[%clk 0:03:01]} 8. Qc2 {[%clk 0:02:40]}  Re8+ {[%clk 0:03:02]} 9. Ne2 {[%clk 0:02:39]}  h5 {[%clk 0:03:02]} 10. Be3 {[%clk 0:02:39]}  Nd7 {[%clk 0:03:02]} 11. O-O-O {[%clk 0:02:39]}  Nf8 {[%clk 0:03:03]} 12. Kb1 {[%clk 0:02:39]}  Be6 {[%clk 0:03:03]} 13. Nf4 {[%clk 0:02:38]}  Bxf4 {[%clk 0:03:02]} 14. Bxf4 {[%clk 0:02:39]}  b5 {[%clk 0:02:55]} 15. h3 {[%clk 0:02:38]}  Qd5 {[%clk 0:02:46]} 16. b3 {[%clk 0:02:36]}  a5 {[%clk 0:02:34]} 17. g4 {[%clk 0:02:20]}  h4 {[%clk 0:02:14]} 18. Be4 {[%clk 0:02:19]}  Qd7 {[%clk 0:02:14]} 19. g5 {[%clk 0:02:17]}  f5 {[%clk 0:02:11]} 20. Bd3 {[%clk 0:02:14]}  a4 {[%clk 0:01:41]} 21. b4 {[%clk 0:02:11]}  Ng6 {[%clk 0:01:38]} 22. Bc1 {[%clk 0:01:59]}  Ne7 {[%clk 0:01:38]} 23. g6 {[%clk 0:01:50]}  fxg6 {[%clk 0:01:25]} 24. Rhg1 {[%clk 0:01:47]}  Bf7 {[%clk 0:01:25]} 25. Bg5 {[%clk 0:01:37]}  Nd5 {[%clk 0:01:24]} 26. Bxh4 {[%clk 0:01:37]}  Nb6 {[%clk 0:01:13]} 27. Bg5 {[%clk 0:01:32]}  Bd5 {[%clk 0:01:06]} 28. Bc1 {[%clk 0:01:30]}  Re6 {[%clk 0:01:06]} 29. h4 {[%clk 0:01:28]}  Be4 {[%clk 0:01:03]} 30. h5 {[%clk 0:01:27]}  gxh5 {[%clk 0:00:56]} 31. Rg5 {[%clk 0:01:24]}  g6 {[%clk 0:00:52]} 32. Rdg1 {[%clk 0:01:21]}  Kh7 {[%clk 0:00:52]} 33. Bxe4 {[%clk 0:01:15]}  fxe4 {[%clk 0:00:52]} 34. Qe2 {[%clk 0:01:10]}  Qf7 {[%clk 0:00:47]} 35. Rxg6 {[%clk 0:00:27]}  Qxg6 {[%clk 0:00:47]} 36. Rxg6 {[%clk 0:00:27]}  Kxg6 {[%clk 0:00:42]} 37. Qe3 {[%clk 0:00:27]}  Rg8 {[%clk 0:00:19]} 38. Qh6+ {[%clk 0:00:21]}  Kf7 {[%clk 0:00:19]} 39. Qxh5+ {[%clk 0:00:20]}  Reg6 {[%clk 0:00:16]} 40. Qf5+ {[%clk 0:00:18]}  Rf6 {[%clk 0:00:15]} 41. Qh5+ {[%clk 0:00:15]}  Rgg6 {[%clk 0:00:14]} 42. Qh7+ {[%clk 0:00:11]}  Ke8 {[%clk 0:00:08]} 43. Be3 {[%clk 0:00:08]}  Nd5 {[%clk 0:00:09]} 44. Qh8+ {[%clk 0:00:07]}  Kf7 {[%clk 0:00:08]} 45. Qh7+ {[%clk 0:00:07]}  Rg7 {[%clk 0:00:08]} 46. Qh5+ {[%clk 0:00:06]}  Rgg6 {[%clk 0:00:08]} 47. Qh7+ {[%clk 0:00:02]}  Ke8 {[%clk 0:00:08]} 48. Qh8+ {[%clk 0:00:02]}  Kd7 {[%clk 0:00:08]} 49. Qh7+ {[%clk 0:00:03]}  Kc8 {[%clk 0:00:09]} 50. Qh3+ {[%clk 0:00:02]}  Kb7 {[%clk 0:00:08]} 51. Qd7+ {[%clk 0:00:02]}  Kb6 {[%clk 0:00:07]} 52. Qd8+ {[%clk 0:00:02]}  Kb7 {[%clk 0:00:07]} 53. Qd7+ {[%clk 0:00:02]}  Nc7 {[%clk 0:00:08]} 54. Kc2 {[%clk 0:00:02]}  Rd6 {[%clk 0:00:07]} 55. Qe7 {[%clk 0:00:02]}  Rge6 {[%clk 0:00:07]} 56. Qg7 {[%clk 0:00:02]}  Rg6 {[%clk 0:00:07]} 57. Qf7 {[%clk 0:00:03]}  Rdf6 {[%clk 0:00:06]} 58. Qe7 {[%clk 0:00:03]}  Re6 {[%clk 0:00:07]} 59. Qd7 {[%clk 0:00:02]}  Rgf6 {[%clk 0:00:06]} 60. Qh7 {[%clk 0:00:03]}  Kb8 {[%clk 0:00:05]} 61. Qh8+ {[%clk 0:00:03]}  Kb7 {[%clk 0:00:05]} 62. Qh7 {[%clk 0:00:03]}  Rd6 {[%clk 0:00:05]} 63. Kd2 {[%clk 0:00:03]}  Rfe6 {[%clk 0:00:05]} 64. Ke2 {[%clk 0:00:03]}  Rf6 {[%clk 0:00:02]} 65. Qg7 {[%clk 0:00:02]}  Rde6 {[%clk 0:00:03]} 66. Qh7 {[%clk 0:00:02]}  Rg6 {[%clk 0:00:03]} 67. Bf4 {[%clk 0:00:02]}  Rd6 {[%clk 0:00:03]} 68. Bxd6 {[%clk 0:00:02]}  Rxd6 {[%clk 0:00:04]} 69. Ke3 {[%clk 0:00:02]}  Kb6 {[%clk 0:00:04]} 70. Qxe4 {[%clk 0:00:02]}  Nd5+ {[%clk 0:00:04]} 71. Kd3 {[%clk 0:00:02]}  Rf6 {[%clk 0:00:05]} 72. f3 {[%clk 0:00:03]}  Rf4 {[%clk 0:00:05]} 73. Qe2 {[%clk 0:00:03]}  Rf7 {[%clk 0:00:05]} 74. Kc2 {[%clk 0:00:04]}  Re7 {[%clk 0:00:05]} 75. Qd2 {[%clk 0:00:04]}  Re3 {[%clk 0:00:05]} 76. f4 {[%clk 0:00:04]}  Rf3 {[%clk 0:00:06]} 77. f5 {[%clk 0:00:04]}  Rxf5 {[%clk 0:00:06]} 78. Kb2 {[%clk 0:00:04]}  Rf3 {[%clk 0:00:06]} 79. Qe1 {[%clk 0:00:03]}  Rxc3 {[%clk 0:00:06]} 80. Qxc3 {[%clk 0:00:04]}  Nxc3 {[%clk 0:00:06]} 81. Kxc3 {[%clk 0:00:04]}  Kc7 {[%clk 0:00:07]} 82. Kd3 {[%clk 0:00:04]}  Kd6 {[%clk 0:00:07]} 83. Ke3 {[%clk 0:00:02]}  Kd5 {[%clk 0:00:06]} 84. Kd3 {[%clk 0:00:02]}  a3 {[%clk 0:00:07]} 85. Kc3 {[%clk 0:00:02]}  Ke4 {[%clk 0:00:07]} 86. Kb3 {[%clk 0:00:03]}  Kxd4 {[%clk 0:00:08]} 87. Kxa3 {[%clk 0:00:03]}  Kc4 {[%clk 0:00:09]} 88. Kb2 {[%clk 0:00:02]}  Kxb4 {[%clk 0:00:09]} 89. a3+ {[%clk 0:00:03]}  Kc4 {[%clk 0:00:10]} 90. Kc2 {[%clk 0:00:03]}  c5 {[%clk 0:00:10]} 91. Kb2 {[%clk 0:00:04]}  Kd3 {[%clk 0:00:10]} 92. Kb3 {[%clk 0:00:04]}  c4+ {[%clk 0:00:10]} 93. Kb4 {[%clk 0:00:03]}  c3 {[%clk 0:00:10]} 94. Kxb5 {[%clk 0:00:04]}  c2 {[%clk 0:00:11]} 95. a4 {[%clk 0:00:05]}  c1=Q {[%clk 0:00:12]} 96. a5 {[%clk 0:00:06]}  Qc7 {[%clk 0:00:12]} 97. a6 {[%clk 0:00:05]}  Qa7 {[%clk 0:00:13]} 0-1


[Site "https://www.chess.com"]

[Event "Early Titled Tuesday Blitz | February 8 2022"]
[White "Araujo Filho, Luiz Antonio Coel"]
[Black "Bodnaruk, Anastasia"]
[WhiteFideId "2130661"]
[BlackFideId "4181751"]
[WhiteElo "2255"]
[BlackElo "2393"]
[Result "0-1"]
[Round "08"]
[TimeControl "180+1"]
[Date "2022.02.08"]
[WhiteClock "0:00:01"]
[BlackClock "0:00:08"]

1. d4 {[%clk 0:03:00]}  Nf6 {[%clk 0:03:00]} 2. Nf3 {[%clk 0:03:00]}  g6 {[%clk 0:03:00]} 3. c4 {[%clk 0:03:00]}  Bg7 {[%clk 0:03:01]} 4. Nc3 {[%clk 0:03:00]}  O-O {[%clk 0:03:01]} 5. e4 {[%clk 0:03:00]}  d6 {[%clk 0:03:02]} 6. Be2 {[%clk 0:03:00]}  e5 {[%clk 0:03:02]} 7. dxe5 {[%clk 0:03:00]}  dxe5 {[%clk 0:03:00]} 8. O-O {[%clk 0:03:01]}  c6 {[%clk 0:02:53]} 9. Qc2 {[%clk 0:03:01]}  Qe7 {[%clk 0:02:47]} 10. Rb1 {[%clk 0:03:00]}  Nh5 {[%clk 0:02:45]} 11. Rd1 {[%clk 0:02:54]}  Nf4 {[%clk 0:02:41]} 12. h3 {[%clk 0:02:51]}  f5 {[%clk 0:02:37]} 13. Bf1 {[%clk 0:02:50]}  fxe4 {[%clk 0:02:30]} 14. Nxe4 {[%clk 0:02:50]}  Bf5 {[%clk 0:02:26]} 15. Bxf4 {[%clk 0:02:46]}  exf4 {[%clk 0:02:25]} 16. Bd3 {[%clk 0:02:46]}  Na6 {[%clk 0:02:07]} 17. a3 {[%clk 0:02:29]}  Rad8 {[%clk 0:02:06]} 18. Re1 {[%clk 0:01:46]}  Qc7 {[%clk 0:02:03]} 19. b4 {[%clk 0:01:43]}  Rd7 {[%clk 0:01:49]} 20. c5 {[%clk 0:01:19]}  Kh8 {[%clk 0:01:39]} 21. Qb3 {[%clk 0:01:10]}  Qd8 {[%clk 0:01:29]} 22. Bxa6 {[%clk 0:01:04]}  bxa6 {[%clk 0:01:25]} 23. Qc4 {[%clk 0:00:53]}  h6 {[%clk 0:00:56]} 24. Qxa6 {[%clk 0:00:49]}  Rd4 {[%clk 0:00:55]} 25. Nxd4 {[%clk 0:00:42]}  Qxd4 {[%clk 0:00:53]} 26. Qxc6 {[%clk 0:00:43]}  f3 {[%clk 0:00:43]} 27. Rbd1 {[%clk 0:00:24]}  Qb2 {[%clk 0:00:40]} 28. g4 {[%clk 0:00:22]}  Bc8 {[%clk 0:00:26]} 29. Rd2 {[%clk 0:00:13]}  Qxa3 {[%clk 0:00:25]} 30. Nd6 {[%clk 0:00:08]}  Qxb4 {[%clk 0:00:25]} 31. Qd5 {[%clk 0:00:06]}  Bxg4 {[%clk 0:00:20]} 32. Re4 {[%clk 0:00:02]}  Qb1+ {[%clk 0:00:09]} 33. Rd1 {[%clk 0:00:02]}  Qc2 {[%clk 0:00:09]} 34. Rxg4 {[%clk 0:00:02]}  Rf5 {[%clk 0:00:09]} 35. Qd3 {[%clk 0:00:01]}  Qxc5 {[%clk 0:00:08]} 0-1


[Site "https://www.chess.com"]